bitfinex-derivatives/quotes_BTCF0:USTF0_20241210
["timestamp","ask_amount","ask_price","bid_price","bid_amount"]
[1733795969239,0.051002,97982.0,97969.0,0.36909354]
[1733795969535,0.051002,97980.0,97974.0,0.051005]
[1733795969736,0.051002,97980.0,97975.0,0.05989354]
[1733795969938,0.051002,97980.0,97976.0,0.00829354]
[1733795970236,0.051002,97980.0,97977.0,0.00829354]
[1733795970438,0.051002,97980.0,97978.0,0.00829354]
[1733795970638,0.051002,97980.0,97979.0,0.00829354]
[1733795971538,0.00104001,97983.0,97980.0,0.051002]
[1733795971731,0.050999,97987.0,97982.0,0.051001]
[1733795971927,0.050999,97987.0,97983.0,0.00829354]
[1733795971928,0.06136976,97987.0,97983.0,0.00829354]
[1733795972131,0.06136976,97987.0,97982.0,0.051001]
[1733795972132,0.06136976,97987.0,97984.0,0.00829354]
[1733795972336,0.06136976,97987.0,97985.0,0.00829354]
[1733795972337,0.09152702,97986.0,97985.0,0.00829354]
[1733795972529,0.06136976,97987.0,97985.0,0.00829354]
[1733795972827,0.06136976,97987.0,97982.0,0.051001]
[1733795972828,0.06736976,97987.0,97986.0,0.00829354]
[1733795974035,0.07136976,97987.0,97986.0,0.00829354]
[1733795974437,0.06536976,97987.0,97986.0,0.00829354]
[1733795975137,0.07336976,97987.0,97986.0,0.00929354]
[1733795977840,0.07336976,97987.0,97986.0,0.0092917]
[1733795978936,0.012,97987.0,97986.0,0.0092917]
[1733795980636,0.012,97987.0,97986.0,0.0610917]
[1733795981037,0.012,97987.0,97986.0,1.57180043]
[1733795991153,0.012,97987.0,97986.0,1.5717998]
[1733795992444,0.012,97987.0,97986.0,1.50929107]
[1733795992640,0.10351901,97987.0,97986.0,0.00929107]
[1733795992953,0.012,97987.0,97986.0,0.00929107]
[1733795993253,0.10352029,97987.0,97986.0,0.00929107]
[1733795993457,0.012,97987.0,97986.0,0.00929107]
[1733795996348,0.012,97987.0,97986.0,0.2516971]
[1733795997360,0.012,97987.0,97986.0,0.00929107]
[1733795997847,0.012,97987.0,97986.0,0.00929155]
[1733796000945,0.10358757,97987.0,97986.0,0.00929155]
[1733796001855,0.46438757,97987.0,97986.0,0.00929155]
[1733796002057,0.46438757,97987.0,97979.0,0.3033835]
[1733796002058,0.3728,97987.0,97979.0,0.24306478]
[1733796002257,0.051005,97975.0,97973.0,0.24310222]
[1733796002460,0.051005,97975.0,97972.0,0.00052]
[1733796002461,0.051005,97974.0,97972.0,0.00052]
[1733796002653,0.051009,97968.0,97961.0,0.3033835]
[1733796002963,0.051009,97968.0,97966.0,0.051009]
[1733796003476,0.051009,97968.0,97967.0,0.24279561]
[1733796004359,0.051009,97968.0,97965.0,0.24279561]
[1733796005559,0.051009,97968.0,97967.0,0.001]
[1733796006256,0.051009,97968.0,97965.0,0.001]
[1733796006459,0.051009,97968.0,97965.0,0.002]
[1733796006664,0.05101,97967.0,97965.0,0.002]
[1733796007458,0.05101,97967.0,97965.0,0.001]
[1733796007855,0.05101,97967.0,97962.0,1.68263768]
[1733796007856,0.051011,97963.0,97962.0,1.68263768]
[1733796008057,0.051011,97963.0,97962.0,1.5]
[1733796008458,0.3608,97966.0,97954.0,0.18211768]
[1733796008657,0.051016,97953.0,97952.0,0.18211768]
[1733796008955,0.051018,97950.0,97948.0,1.5]
[1733796009156,0.051018,97950.0,97948.0,1.68210555]
[1733796009387,0.051018,97950.0,97948.0,1.5]
[1733796009860,0.051018,97950.0,97946.0,0.23312555]
[1733796010059,0.09172266,97963.0,97949.0,0.18198534]
[1733796010259,0.3608,97966.0,97964.0,0.05101]
[1733796010658,0.3608,97966.0,97965.0,0.1028]
[1733796011061,0.09172266,97979.0,97972.0,0.051006]
[1733796011352,0.09172266,97982.0,97973.0,1.5]
[1733796011562,0.051003,97979.0,97973.0,1.5]
[1733796011763,0.09172266,97983.0,97973.0,1.5]
[1733796011962,0.051005,97976.0,97973.0,1.5]
[1733796012163,0.051005,97976.0,97974.0,0.00510299]
[1733796012374,0.051005,97976.0,97975.0,0.00510299]
[1733796013068,0.001,97979.0,97975.0,0.00510299]
[1733796013270,0.001,97979.0,97976.0,0.00510299]
[1733796013459,0.001,97979.0,97977.0,0.00510299]
[1733796013763,0.001,97979.0,97978.0,0.00510299]
[1733796014165,0.052003,97979.0,97978.0,0.0082923]
[1733796014362,0.051003,97979.0,97978.0,0.0082923]
[1733796014564,0.051003,97979.0,97978.0,0.00318931]
[1733796015463,0.053003,97979.0,97978.0,0.00318931]
[1733796015665,0.002,97979.0,97978.0,0.00318931]
[1733796015870,0.002,97979.0,97978.0,0.00829216]
[1733796015871,0.005,97979.0,97978.0,0.00829216]
[1733796016369,0.002,97979.0,97978.0,0.00829216]
[1733796016564,0.006,97979.0,97978.0,0.00829216]
[1733796016965,0.006,97979.0,97978.0,0.1902775]
[1733796017167,0.006,97979.0,97978.0,0.00829216]
[1733796017863,0.050997,97991.0,97978.0,0.00829216]
[1733796018065,0.050997,97991.0,97990.0,0.18189134]
[1733796018963,0.052997,97991.0,97990.0,0.18189134]
[1733796019263,0.056997,97991.0,97990.0,0.18189134]
[1733796019462,0.006,97991.0,97990.0,0.18189134]
[1733796019664,0.006,97991.0,97987.0,0.3608]
[1733796019665,0.006,97991.0,97988.0,0.00816]
[1733796019968,0.01,97991.0,97990.0,0.001]
[1733796020567,0.01,97991.0,97990.0,1.501]
[1733796020770,0.012,97991.0,97990.0,1.74352179]
[1733796020969,0.012,97991.0,97990.0,1.501]
[1733796021566,0.012,97991.0,97990.0,1.50418881]
[1733796022073,0.012,97991.0,97990.0,1.50929091]
[1733796022370,0.012,97991.0,97990.0,1.5]
[1733796022968,0.012,97991.0,97990.0,1.501]
[1733796024271,0.02575404,97991.0,97990.0,1.501]
[1733796024465,0.02575404,97991.0,97990.0,0.001]
[1733796024663,0.050997,97990.0,97988.0,0.11111162]
[1733796024875,0.01375404,97989.0,97988.0,0.11111162]
[1733796025467,0.01375404,97989.0,97988.0,1.61111162]
[1733796025962,0.02175404,97989.0,97988.0,1.61211162]
[1733796027878,0.02575404,97989.0,97988.0,1.61211162]
[1733796029976,0.02575404,97989.0,97988.0,0.3618]
[1733796030482,0.012,97989.0,97988.0,0.37009097]
[1733796031075,0.012,97989.0,97988.0,1.87009097]
[1733796032679,0.012,97989.0,97988.0,0.00929097]
[1733796032981,0.3728,97989.0,97988.0,0.00929097]
[1733796033477,0.051011,97963.0,97961.0,0.18198036]
[1733796033777,0.051009,97968.0,97961.0,1.5]
[1733796033969,0.051006,97973.0,97969.0,0.051008]
[1733796034479,0.051006,97973.0,97962.0,0.18198036]
[1733796034480,0.051007,97971.0,97962.0,0.18198036]
[1733796034898,0.051007,97971.0,97964.0,0.05101]
[1733796035182,0.051007,97971.0,97965.0,0.00164]
[1733796036168,0.3608,97975.0,97965.0,0.00164]
[1733796036379,0.3608,97975.0,97973.0,0.051005]
[1733796036772,0.3608,97975.0,97973.0,0.07144]
[1733796038474,0.411805,97975.0,97973.0,0.07144]
[1733796039175,0.413805,97975.0,97973.0,0.07144]
[1733796039676,0.09148202,97974.0,97973.0,0.07144]
[1733796039887,0.41584501,97975.0,97973.0,0.07144]
[1733796040182,0.414805,97975.0,97973.0,0.07144]
[1733796040772,0.003,97974.0,97973.0,0.07144]
[1733796042477,0.001,97974.0,97973.0,0.07144]
[1733796042677,0.05101,97966.0,97965.0,0.00164]
[1733796042892,0.41181,97966.0,97965.0,0.00164]
[1733796043590,0.53380028,97966.0,97965.0,0.00164]
[1733796043785,0.41181,97966.0,97965.0,0.00164]
[1733796045583,0.00013056,97965.0,97949.0,0.00159]
[1733796045888,0.00013056,97965.0,97940.0,0.3608]
[1733796045889,0.051017,97951.0,97950.0,0.00319047]
[1733796046283,0.051017,97951.0,97941.0,1.5]
[1733796046284,0.051022,97942.0,97941.0,1.5]
[1733796046583,0.051022,97942.0,97941.0,0.00478061]
[1733796046883,0.051022,97942.0,97941.0,0.00319061]
[1733796047576,0.051022,97942.0,97941.0,0.00319067]
[1733796048778,0.052022,97942.0,97941.0,0.01119067]
[1733796049180,0.052022,97942.0,97941.0,0.01519067]
[1733796052887,0.052022,97942.0,97941.0,0.012]
[1733796055483,0.052022,97942.0,97941.0,0.01519071]
[1733796055683,0.052022,97942.0,97941.0,0.012]
[1733796057285,0.051023,97940.0,97939.0,0.05134]
[1733796059394,0.052022,97942.0,97936.0,0.00011479]
[1733796059588,0.051025,97937.0,97936.0,0.00011479]
[1733796059993,0.051025,97937.0,97936.0,7.9e-07]
[1733796060297,0.05103,97926.0,97925.0,0.0529]
[1733796060498,0.41183,97926.0,97925.0,0.0529]
[1733796062792,0.41283,97926.0,97925.0,0.0619]
[1733796063494,0.41483,97926.0,97925.0,0.0619]
[1733796063898,0.41383,97926.0,97925.0,0.0529]
[1733796064094,0.41883,97926.0,97925.0,0.0529]
[1733796066102,0.42944112,97926.0,97925.0,0.0529]
[1733796067697,0.46978857,97926.0,97911.0,0.0527]
[1733796067889,0.46978857,97926.0,97900.0,0.1]
[1733796067890,0.051043,97902.0,97900.0,0.1]
[1733796068093,0.051043,97902.0,97901.0,0.00522227]
[1733796068496,0.051043,97902.0,97901.0,0.0001156]
[1733796069702,0.051043,97902.0,97901.0,0.0041156]
[1733796069902,0.052043,97902.0,97901.0,0.0111156]
[1733796071008,0.051043,97902.0,97901.0,0.0567156]
[1733796071306,0.051043,97902.0,97901.0,0.0071156]
[1733796072000,0.051043,97902.0,97900.0,0.1]
[1733796072001,0.051043,97902.0,97900.0,6e-07]
[1733796072302,0.06169293,97902.0,97900.0,6e-07]
[1733796073896,0.10004938,97901.0,97900.0,6e-07]
[1733796075303,0.051044,97900.0,97891.0,0.0999]
[1733796075503,0.411848,97892.0,97891.0,0.0999]
[1733796076511,0.051053,97883.0,97882.0,1.5]
[1733796076708,0.051053,97883.0,97866.0,0.3608]
[1733796076709,0.3608,97883.0,97866.0,0.3608]
[1733796076909,0.051061,97867.0,97866.0,0.3608]
[1733796077499,0.05117836,97867.0,97866.0,0.3608]
[1733796078099,0.00011736,97867.0,97866.0,0.3608]
[1733796078506,0.00111736,97867.0,97866.0,0.3608]
[1733796078812,0.051057,97875.0,97866.0,0.411861]
[1733796079014,0.051057,97875.0,97874.0,1.5]
[1733796079205,0.10004938,97880.0,97874.0,1.5]
[1733796079707,0.10004938,97880.0,97875.0,0.05319259]
[1733796079925,0.05118442,97879.0,97876.0,0.00319259]
[1733796080113,0.05118442,97879.0,97877.0,0.00319259]
[1733796080314,0.05118442,97879.0,97878.0,0.00319259]
[1733796081411,0.05218442,97879.0,97878.0,0.00319259]
[1733796082408,0.05211442,97879.0,97878.0,0.05439259]
[1733796083115,0.05211442,97879.0,97878.0,0.41919259]
[1733796083813,0.00112942,97879.0,97878.0,0.41919259]
[1733796084010,0.3608,97892.0,97878.0,0.41919259]
[1733796084209,0.3608,97892.0,97879.0,0.00319259]
[1733796084512,0.3608,97892.0,97880.0,0.00319259]
[1733796084712,0.09137745,97901.0,97891.0,0.3608]
[1733796084915,0.3608,97916.0,97891.0,0.3608]
[1733796084916,0.09137745,97904.0,97899.0,0.3608]
[1733796085110,0.09137745,97904.0,97900.0,0.0509923]
[1733796085111,0.01227745,97904.0,97900.0,0.0509923]
[1733796085411,0.01227745,97904.0,97902.0,0.051043]
[1733796085612,0.051038,97911.0,97903.0,0.00319146]
[1733796085811,0.051038,97911.0,97909.0,0.3608]
[1733796086017,0.01029667,97919.0,97910.0,0.00319146]
[1733796086216,0.00011754,97918.0,97911.0,0.00319146]
[1733796086415,0.00011754,97918.0,97909.0,0.3608]
[1733796086416,0.00011754,97918.0,97917.0,0.3608]
[1733796086620,0.05103,97928.0,97917.0,0.36399146]
[1733796086812,0.05103,97928.0,97918.0,0.15427484]
[1733796087012,0.1525453,97936.0,97919.0,0.00319146]
[1733796087315,0.1525453,97937.0,97931.0,0.3608]
[1733796087513,8.749e-05,97936.0,97932.0,0.00319146]
[1733796087713,8.749e-05,97936.0,97934.0,0.051026]
[1733796088020,8.749e-05,97936.0,97935.0,0.00319146]
[1733796088617,8.749e-05,97936.0,97935.0,1.50319146]
[1733796088819,8.749e-05,97936.0,97935.0,1.50319059]
[1733796089313,8.749e-05,97936.0,97935.0,1.50519059]
[1733796089920,8.749e-05,97936.0,97935.0,1.50319059]
[1733796090117,0.00108749,97936.0,97935.0,0.00519059]
[1733796090724,0.00108749,97936.0,97935.0,0.01019059]
[1733796091825,0.00108749,97936.0,97935.0,0.007]
[1733796092024,0.36188749,97936.0,97935.0,0.007]
[1733796093120,0.36088749,97936.0,97935.0,0.002]
[1733796093327,0.36088749,97936.0,97935.0,0.004]
[1733796093628,0.36088749,97936.0,97935.0,0.005]
[1733796093815,0.36088749,97936.0,97935.0,0.003]
[1733796094011,0.36088749,97936.0,97903.0,0.3608]
[1733796094322,0.051041,97906.0,97904.0,0.00319148]
[1733796094523,0.051036,97915.0,97905.0,0.00319148]
[1733796094819,0.051036,97915.0,97906.0,0.00319148]
[1733796095020,0.3608,97918.0,97905.0,0.051041]
[1733796095021,0.3608,97918.0,97907.0,0.36399148]
[1733796095323,0.3608,97923.0,97915.0,0.3608]
[1733796095522,0.00308749,97936.0,97920.0,0.3608]
[1733796095718,0.00308749,97936.0,97933.0,0.3608]
[1733796095917,0.00308749,97936.0,97935.0,0.001]
[1733796096826,0.00508749,97936.0,97933.0,0.3608]
[1733796097520,8.749e-05,97936.0,97935.0,0.001]
[1733796097930,8.749e-05,97936.0,97935.0,0.00319055]
[1733796098124,8.749e-05,97936.0,97935.0,1.50319055]
[1733796098425,8.749e-05,97936.0,97935.0,1.50319057]
[1733796098623,0.00108749,97936.0,97935.0,1.50319057]
[1733796099614,0.00108749,97936.0,97935.0,1.50519057]
[1733796099822,0.00108749,97936.0,97935.0,0.002]
[1733796100823,0.00108749,97936.0,97935.0,0.005]
[1733796101527,8.749e-05,97936.0,97935.0,0.004]
[1733796101732,8.749e-05,97936.0,97935.0,0.00719069]
[1733796101921,8.749e-05,97936.0,97935.0,0.00619069]
[1733796102722,8.749e-05,97936.0,97935.0,1.50519069]
[1733796102930,8.749e-05,97936.0,97935.0,1.50619069]
[1733796103523,8.749e-05,97936.0,97935.0,0.00619069]
[1733796103723,8.749e-05,97936.0,97935.0,0.00719069]
[1733796104327,8.749e-05,97936.0,97935.0,0.004]
[1733796106229,8.749e-05,97936.0,97935.0,0.00719071]
[1733796106437,8.749e-05,97936.0,97935.0,0.004]
[1733796106832,8.749e-05,97936.0,97935.0,0.00719065]
[1733796108035,8.749e-05,97936.0,97935.0,0.00719061]
[1733796108432,0.102515,97957.0,97935.0,0.05616502]
[1733796108629,0.102515,97957.0,97955.0,0.3608]
[1733796108828,0.0515,97957.0,97955.0,0.3608]
[1733796109432,8.033e-05,97956.0,97955.0,0.3608]
[1733796109835,8.033e-05,97956.0,97955.0,0.411815]
[1733796111037,0.00508033,97956.0,97955.0,0.411815]
[1733796111334,0.00508033,97956.0,97955.0,0.41500526]
[1733796111932,0.00808033,97956.0,97955.0,0.41500526]
[1733796112530,0.00808033,97956.0,97955.0,0.41493526]
[1733796113129,0.00808033,97956.0,97955.0,0.411745]
[1733796114133,0.00808033,97956.0,97955.0,0.41493484]
[1733796114337,0.00808033,97956.0,97955.0,0.411745]
[1733796114526,0.00808033,97956.0,97955.0,0.41493484]
[1733796115032,0.00808033,97956.0,97955.0,0.36073]
[1733796115233,0.18066107,97956.0,97955.0,0.36073]
[1733796115431,0.00808033,97956.0,97935.0,0.40977441]
[1733796115640,0.051019,97948.0,97936.0,1.50319011]
[1733796115840,0.051019,97948.0,97941.0,0.051022]
[1733796116035,0.051019,97948.0,97942.0,0.00319011]
[1733796116233,0.051019,97948.0,97944.0,0.051021]
[1733796116531,0.051019,97948.0,97945.0,0.00319011]
[1733796116744,0.051019,97948.0,97946.0,0.00319011]
[1733796116934,0.051019,97948.0,97947.0,0.00319011]
[1733796118132,0.051019,97948.0,97944.0,0.051021]
[1733796118337,0.051019,97948.0,97945.0,0.00319036]
[1733796118635,0.051019,97948.0,97946.0,0.00319036]
[1733796118636,0.054019,97948.0,97946.0,0.00319036]
[1733796118831,0.054019,97948.0,97944.0,0.051021]
[1733796119036,0.053019,97948.0,97945.0,0.00319035]
[1733796119233,0.17497558,97948.0,97946.0,0.00319035]
[1733796119538,0.17497558,97948.0,97938.0,0.051024]
[1733796119738,0.17497558,97948.0,97939.0,0.00319037]
[1733796119944,0.17497558,97948.0,97940.0,0.00319037]
[1733796120132,0.053019,97948.0,97941.0,0.00319037]
[1733796120332,0.053019,97948.0,97942.0,0.00319037]
[1733796120543,0.12395658,97948.0,97946.0,0.05102]
[1733796120731,0.12395658,97948.0,97947.0,0.00319037]
[1733796120732,0.001,97948.0,97947.0,0.00319037]
[1733796121443,0.12195658,97952.0,97947.0,0.00319037]
[1733796121637,0.12195658,97952.0,97951.0,0.051017]
[1733796121842,0.12195658,97952.0,97951.0,1.55420737]
[1733796122043,0.12195658,97953.0,97951.0,1.55420737]
[1733796122232,0.12195658,97953.0,97952.0,0.00319037]
[1733796122545,8.033e-05,97956.0,97952.0,0.00319037]
[1733796122844,8.033e-05,97956.0,97953.0,0.00319037]
[1733796122845,0.051016,97954.0,97953.0,0.00319037]
[1733796123543,0.051015,97955.0,97953.0,0.00319018]
[1733796123844,0.051015,97955.0,97954.0,0.00319018]
[1733796125047,0.054015,97955.0,97954.0,0.00319018]
[1733796125232,0.057015,97955.0,97954.0,0.00319018]
[1733796125638,0.054015,97955.0,97954.0,0.00319018]
[1733796125834,0.058015,97955.0,97954.0,0.00319018]
[1733796126041,0.055015,97955.0,97954.0,0.00319018]
[1733796126247,0.058015,97955.0,97954.0,0.00319018]
[1733796126449,0.007,97955.0,97954.0,0.00319018]
[1733796127250,0.007,97955.0,97954.0,1.50319018]
[1733796127843,0.007,97955.0,97954.0,1.55239018]
[1733796128038,0.007,97955.0,97954.0,1.60069018]
[1733796128750,0.007,97955.0,97954.0,1.87414049]
[1733796129048,0.007,97955.0,97954.0,2.17742669]
[1733796129245,0.007,97955.0,97954.0,1.80647638]
[1733796129952,0.007,97955.0,97954.0,1.50319018]
[1733796131542,0.007,97955.0,97954.0,0.00319018]
[1733796133448,0.11717519,97955.0,97954.0,0.00319018]
[1733796133655,0.051018,97949.0,97948.0,0.18307535]
[1733796133856,0.051018,97949.0,97945.0,0.18307535]
[1733796134040,0.051018,97949.0,97937.0,0.3032862]
[1733796134041,0.051022,97942.0,97940.0,0.00182]
[1733796134241,0.051025,97936.0,97932.0,0.18309984]
[1733796134448,0.051025,97936.0,97928.0,0.42711686]
[1733796134751,0.051025,97936.0,97922.0,0.18309984]
[1733796135249,0.051025,97936.0,97919.0,0.18309984]
[1733796135552,0.052025,97936.0,97935.0,0.00307441]
[1733796135752,0.051034,97920.0,97919.0,0.18309984]
[1733796135952,0.051037,97914.0,97913.0,0.18309984]
[1733796136150,0.411837,97914.0,97912.0,0.18309984]
[1733796136853,0.00011773,97913.0,97909.0,0.18309984]
[1733796137147,0.00011773,97913.0,97905.0,0.00052]
[1733796137148,0.051041,97906.0,97905.0,0.00052]
[1733796137347,0.051041,97906.0,97896.0,1.5]
[1733796137348,0.051046,97897.0,97896.0,1.5]
[1733796137542,0.411846,97897.0,97896.0,1.50140206]
[1733796137945,0.411846,97897.0,97896.0,0.00140206]
[1733796138955,0.412846,97897.0,97896.0,0.00140206]
[1733796139147,0.413846,97897.0,97896.0,0.00140206]
[1733796141558,0.053046,97897.0,97896.0,0.00140206]
[1733796141758,0.053046,97897.0,97896.0,1.50140206]
[1733796142061,0.413846,97897.0,97896.0,1.50140206]
[1733796142245,0.42444295,97897.0,97896.0,1.50140206]
[1733796142445,0.42437295,97897.0,97896.0,1.50140206]
[1733796143148,0.42437295,97897.0,97896.0,0.00140206]
[1733796145851,0.42437295,97897.0,97896.0,1.50140206]
[1733796146254,0.05106,97870.0,97868.0,0.0519]
[1733796146763,0.051061,97868.0,97856.0,0.411866]
[1733796147151,0.051063,97865.0,97856.0,0.411866]
[1733796147450,0.051063,97865.0,97856.0,0.41193951]
[1733796147658,0.051059,97871.0,97861.0,0.051064]
[1733796147947,0.001,97870.0,97868.0,0.05106]
[1733796148149,0.051051,97886.0,97867.0,0.051061]
[1733796148353,0.411848,97893.0,97876.0,0.46084938]
[1733796148556,0.05105,97888.0,97881.0,0.051053]
[1733796148953,0.05105,97888.0,97887.0,1.5]
[1733796149755,0.05205,97888.0,97887.0,1.5]
[1733796150162,0.001,97888.0,97876.0,0.3608]
[1733796150457,0.051056,97877.0,97876.0,0.3608]
[1733796150658,0.051056,97877.0,97876.0,1.8608]
[1733796151061,0.051056,97877.0,97876.0,1.86399249]
[1733796151653,0.052056,97877.0,97876.0,0.3628]
[1733796151963,0.412856,97877.0,97876.0,0.002]
[1733796152158,0.413856,97877.0,97876.0,0.002]
[1733796153863,0.4245527,97877.0,97876.0,0.002]
[1733796155262,0.4245527,97877.0,97859.0,0.051065]
[1733796155263,0.051066,97857.0,97852.0,0.0525]
[1733796155463,0.051066,97857.0,97852.0,0.1006]
[1733796155758,0.051066,97857.0,97856.0,1.50007351]
[1733796156154,0.051066,97857.0,97856.0,7.351e-05]
[1733796156155,0.411866,97857.0,97856.0,7.351e-05]
[1733796157757,0.42256061,97857.0,97839.0,0.3608]
[1733796157959,0.051075,97840.0,97839.0,0.3608]
[1733796158158,0.051075,97840.0,97839.0,0.36399373]
[1733796159057,0.051075,97840.0,97839.0,1.86399373]
[1733796159260,0.052075,97840.0,97839.0,1.86399373]
[1733796159467,0.002,97840.0,97839.0,1.86399373]
[1733796163464,0.002,97840.0,97839.0,1.86399374]
[1733796165467,0.001,97840.0,97839.0,1.86399374]
[1733796165659,0.002,97840.0,97839.0,1.86399374]
[1733796170666,0.002,97840.0,97839.0,0.36399374]
[1733796170875,0.001,97840.0,97839.0,0.36399374]
[1733796171268,0.001,97840.0,97839.0,1.86399374]
[1733796171773,0.001,97840.0,97839.0,0.36399374]
[1733796179788,0.052075,97840.0,97839.0,0.36399374]
[1733796180079,0.052075,97840.0,97839.0,0.3639937]
[1733796180476,0.0521481,97840.0,97839.0,0.0031937]
[1733796181471,0.051079,97832.0,97831.0,9.447e-05]
[1733796181674,0.411879,97832.0,97831.0,9.447e-05]
[1733796181874,0.051079,97832.0,97831.0,9.447e-05]
[1733796182281,0.12209145,97837.0,97831.0,9.447e-05]
[1733796182578,7.31e-05,97840.0,97835.0,0.051078]
[1733796182579,0.12209145,97838.0,97835.0,0.051078]
[1733796182879,0.01044114,97840.0,97831.0,9.447e-05]
[1733796183079,0.13253259,97840.0,97831.0,9.447e-05]
[1733796183282,0.051077,97837.0,97831.0,9.447e-05]
[1733796183983,0.001,97832.0,97831.0,9.447e-05]
[1733796184575,0.17316845,97837.0,97831.0,9.447e-05]
[1733796184576,0.17316845,97837.0,97831.0,0.05117447]
[1733796184769,0.17416845,97837.0,97831.0,0.05117447]
[1733796185181,0.17316845,97837.0,97831.0,0.05117447]
[1733796185381,0.001,97832.0,97831.0,0.05117447]
[1733796185676,0.052079,97832.0,97831.0,9.447e-05]
[1733796185979,0.051088,97816.0,97815.0,0.00052]
[1733796186185,0.051092,97807.0,97806.0,0.24459966]
[1733796186378,0.051092,97807.0,97802.0,0.60539966]
[1733796186883,0.051092,97807.0,97803.0,0.24459966]
[1733796187075,0.051093,97806.0,97802.0,0.3608]
[1733796187477,0.051094,97805.0,97802.0,0.3608]
[1733796187674,0.17252779,97815.0,97802.0,0.3608]
[1733796187675,0.051094,97804.0,97802.0,0.3608]
[1733796188981,0.052094,97804.0,97802.0,0.3608]
[1733796190184,0.06225121,97804.0,97802.0,0.3608]
[1733796190686,0.06225121,97804.0,97800.0,1.60052]
[1733796190687,0.051096,97801.0,97800.0,0.10052]
[1733796190887,0.051096,97801.0,97800.0,0.1]
[1733796191384,0.051096,97801.0,97770.0,0.30574958]
[1733796191385,0.351096,97801.0,97769.0,0.24459966]
[1733796191584,0.351096,97801.0,97766.0,0.29571366]
[1733796191585,0.46084938,97780.0,97766.0,0.29571366]
[1733796191783,0.05111,97775.0,97766.0,0.051114]
[1733796192185,0.46188939,97780.0,97766.0,0.051114]
[1733796192186,0.05111,97774.0,97766.0,0.051114]
[1733796192385,0.051111,97773.0,97766.0,0.051114]
[1733796192889,0.46188939,97780.0,97766.0,0.051114]
[1733796192890,0.051111,97772.0,97766.0,0.051114]
[1733796193084,0.3608,97772.0,97765.0,0.0979]
[1733796193286,0.411911,97772.0,97765.0,0.0979]
[1733796193491,0.051113,97768.0,97760.0,0.01019988]
[1733796193691,0.051113,97768.0,97761.0,0.051117]
[1733796193991,0.3608,97772.0,97752.0,0.1458]
[1733796193992,0.3608,97772.0,97763.0,0.051115]
[1733796194285,0.3608,97772.0,97764.0,0.00319635]
[1733796194483,0.3608,97772.0,97765.0,0.00319635]
[1733796194679,0.3608,97772.0,97766.0,0.00319635]
[1733796194986,0.002,97768.0,97767.0,0.00319635]
[1733796195485,0.01161517,97772.0,97767.0,0.00319635]
[1733796195682,0.01261517,97772.0,97768.0,0.00319635]
[1733796195879,0.01261517,97772.0,97769.0,0.00319635]
[1733796196195,0.01261517,97772.0,97770.0,0.00319635]
[1733796196484,0.01261517,97772.0,97771.0,0.00319635]
[1733796196685,0.01261517,97772.0,97765.0,0.051114]
[1733796196891,0.01261517,97772.0,97766.0,1.50319618]
[1733796197197,0.001,97768.0,97767.0,0.00319618]
[1733796197784,0.002,97768.0,97767.0,1.50319618]
[1733796198282,0.001,97768.0,97767.0,1.50319618]
[1733796198586,0.001,97768.0,97767.0,1.50319579]
[1733796198779,0.001,97768.0,97767.0,1.5]
[1733796199180,0.001,97768.0,97767.0,1.50319582]
[1733796200182,0.001,97768.0,97767.0,1.5]
[1733796200490,0.002,97768.0,97767.0,1.5]
[1733796200681,0.051116,97762.0,97756.0,0.051119]
[1733796201084,0.051116,97762.0,97757.0,1.5]
[1733796201285,0.10004938,97766.0,97757.0,1.5]
[1733796201485,0.051118,97758.0,97757.0,1.5]
[1733796202090,0.05112,97755.0,97754.0,0.36091249]
[1733796202286,0.05112,97755.0,97754.0,0.00011249]
[1733796202482,0.05112,97755.0,97754.0,1.50011249]
[1733796202782,0.05112,97755.0,97754.0,0.00011249]
[1733796203088,0.05119301,97755.0,97754.0,0.00011249]
[1733796203987,0.05119301,97755.0,97738.0,0.3608]
[1733796203988,0.051128,97740.0,97738.0,0.3608]
[1733796205098,0.3608,97746.0,97738.0,1.8608]
[1733796205286,0.3608,97746.0,97744.0,0.051125]
[1733796205486,0.051121,97753.0,97745.0,0.0993]
[1733796205682,7.301e-05,97755.0,97745.0,0.0993]
[1733796205683,0.051122,97752.0,97745.0,0.0993]
[1733796206100,7.301e-05,97755.0,97745.0,0.0993]
[1733796206296,0.411922,97751.0,97745.0,0.0993]
[1733796207193,0.051124,97747.0,97745.0,0.0993]
[1733796207694,0.051124,97747.0,97745.0,0.0491]
[1733796207695,0.001,97746.0,97745.0,0.0491]
[1733796208495,0.052124,97747.0,97745.0,0.0491]
[1733796208691,0.053124,97747.0,97745.0,0.0491]
[1733796209093,0.051126,97743.0,97738.0,1.50052]
[1733796209292,0.051127,97741.0,97738.0,1.5]
[1733796209501,0.002,97747.0,97738.0,1.5]
[1733796209502,0.051128,97739.0,97738.0,1.5]
[1733796210596,0.051136,97724.0,97701.0,0.30574958]
[1733796210902,0.411936,97724.0,97708.0,0.051144]
[1733796211091,0.051136,97724.0,97710.0,0.051143]
[1733796211497,0.3608,97730.0,97717.0,0.3608]
[1733796211701,0.051131,97734.0,97729.0,0.3608]
[1733796211898,0.001,97739.0,97730.0,0.05]
[1733796212098,0.3608,97749.0,97730.0,0.05]
[1733796212303,0.0502,97769.0,97740.0,0.3608]
[1733796212598,0.051119,97758.0,97746.0,0.051124]
[1733796212794,0.051119,97758.0,97747.0,0.0494]
[1733796214201,0.10004938,97760.0,97747.0,0.0494]
[1733796214396,0.051122,97752.0,97747.0,0.0494]
[1733796215019,0.10004938,97760.0,97747.0,0.0494]
[1733796215307,0.051122,97751.0,97747.0,0.0494]
[1733796216005,0.10004938,97760.0,97747.0,0.0494]
[1733796216204,0.10004938,97760.0,97730.0,0.4048931]
[1733796216205,0.05113,97737.0,97734.0,0.24459966]
[1733796216503,0.3608,97748.0,97730.0,0.05]
[1733796216504,0.3608,97739.0,97730.0,0.05]
[1733796216696,0.3608,97731.0,97730.0,0.05]
[1733796218098,0.3608,97731.0,97730.0,0.054]
[1733796218500,0.051124,97747.0,97737.0,0.051129]